Cogmind - Beta 14 @@@ ROGUE MODE // 2025.03.22 @ 17:11:40 Player: TryingToLearn Result: Destroyed by D-53 Grenadier with Mini Grenade Launcher Performance ------------- Evolutions (0) 0 Regions Visited (2) 400 Robots Destroyed (9) 45 Value Destroyed (224) 224 Prototype IDs (0) 0 Alien Tech Used (0) 0 Bonus (0) 0 TOTAL SCORE: 669 Bonus ------- None Cogmind --------- Core Integrity 0/250 Matter 300/300 Energy 92/100 System Corruption 1% Temperature Cool (2) Movement Walking (120) Location -10/Mines Parts ------- > --- POWER (1) -------- (None) > --- PROPULSION (2) --- Flexi-carbon Leg > --- UTILITY (2) ------ Medium Storage Unit Sensor Array > --- WEAPON (2) ------- (None) > --- INVENTORY (10) --- Ion Engine Aluminum Leg Wheel Wheel Small Storage Unit Huge Storage Unit Sensor Array Signal Interpreter Peak State ------------ > --- POWER ------------ (None) > --- PROPULSION ------- Flexi-carbon Leg > --- UTILITY ---------- Medium Storage Unit Sensor Array > --- WEAPON ----------- Small Laser Small Laser > --- INVENTORY -------- Ion Engine Aluminum Leg Wheel Wheel Small Storage Unit Huge Storage Unit Sensor Array Signal Interpreter [Rating: 9] Favorites ----------- Power Light Ion Engine Engine Light Ion Engine Propulsion Light Treads Treads Light Treads Leg Flexi-carbon Leg Utility Small Storage Unit Device Sensor Array Storage Small Storage Unit Weapon Medium Laser Energy Gun Medium Laser Build | -11 -10 -10 ------- Run | Yrd Mat Min Slots Evolved . | . . . Power . | . . . Propulsion . | . . . Utility . | . . . Weapon . | . . . Parts Attached 11 | 6 3 2 Power 1 | 1 . . Engine 1 | 1 . . Core . | . . . Reactor . | . . . Propulsion 3 | 2 . 1 Treads 2 | 2 . . Leg 1 | . . 1 Wheel . | . . . Hover . | . . . Flight . | . . . Utility 3 | 1 2 . Device 1 | . 1 . Storage 2 | 1 1 . Processor . | . . . Hackware . | . . . Protection . | . . . Artifact . | . . . Weapon 4 | 2 1 1 Energy Gun 4 | 2 1 1 Energy Cannon . | . . . Ballistic Gun . | . . . Ballistic Cannon . | . . . Launcher . | . . . Special Weapon . | . . . Impact Weapon . | . . . Slashing Weapon . | . . . Piercing Weapon . | . . . Special Melee Weapon . | . . . Unidentified Prototypes . | . . . Parts Lost 7 | . 4 3 Power 1 | . 1 . Propulsion 2 | . 1 1 Utility . | . . . Weapon 4 | . 2 2 Highest Loss Streak 3 | . 3 3 To Critical Strikes . | . . . Average Slot Usage (%) 85 | . 89 57 Engine 10 | . 12 . Treads 24 | . 26 8 Device 10 | . 10 14 Storage 14 | . 14 14 Energy Gun 23 | . 24 16 Peak Build Rating 9 | 6 7 9 Average Rating 5 | 4 6 5 On Entrance 3 | . 6 4 Naked Turns . | . . . Heaviest Build 13 | 12 13 13 Greatest Support 40 | 40 40 20 Greatest Overweight (x) 4 | . . 4 Average Overweight (x) . | . . . Largest Inventory Capacity 10 | 8 10 10 Average Capacity 8 | 7 8 10 Most Carried 8 | 6 8 8 Average Carried 6 | 3 7 8 Final Capacity 10 | 8 10 10 Final Carried 8 | 6 8 8 Class Distribution -------------------- 100% | Mutant Dominant Class ---------------- Mutant | -10/Materials Mutant | -10/Mines Resources | -11 -10 -10 ----------- Run | Yrd Mat Min Matter Collected 310 | 259 26 25 Remotely . | . . . Salvage Created 287 | . 200 87 Parts 14 | . 9 5 Haulers Intercepted . | . . . Recyclers Shooed . | . . . Parts Field Recycled . | . . . Retrieved Matter . | . . . Parts Self-Destructed . | . . . Prevented . | . . . Kills | -11 -10 -10 ------- Run | Yrd Mat Min Combat Hostiles Destroyed 7 | . 5 2 Guns 7 | . 5 2 Classes Destroyed 3 | . 3 . Watcher 2 | . 2 . Swarmer 3 | . 3 . Grunt 4 | . 2 2 Best Kill Streak 3 | . 3 2 Combat Bots Only 3 | . 3 2 Max Kills in Single Turn 1 | . 1 1 Gunslinging . | . . . Exploded . | . . . Melee . | . . . Uniques/NPCs Destroyed . | . . . Combat | -11 -10 -10 -------- Run | Yrd Mat Min Hostile Shots Fired 75 | . 60 15 Missed 21 | . 18 3 Damage Taken 981 | . 551 430 Core 253 | . 96 157 Absorbed by Shields . | . . . Core Remaining (%) 100 | 100 . . Volleys Fired 25 | . 20 5 Largest 2 | . 2 2 Hottest 90 | . 90 80 Shots Fired 47 | . 40 7 Gun 47 | . 40 7 Cannon . | . . . Launcher . | . . . Special . | . . . Kinetic . | . . . Thermal 33 | . 26 7 Explosive . | . . . Electromagnetic 14 | . 14 . Robot Hit Streak 7 | . 6 7 Robot Miss Streak 2 | . 2 . Penetration Max . | . . . Secondary Targets . | . . . Shots Hit Robots 30 | . 24 6 Core Hits 15 | . 11 4 Critical Kills . | . . . Critical Parts Destroyed . | . . . Critical Strikes 2 | . 2 . Burn 2 | . 2 . Melee Attacks . | . . . Impact . | . . . Slashing . | . . . Piercing . | . . . Sneak Attacks . | . . . Combat Hostiles . | . . . Follow-up Attacks . | . . . Damage Inflicted 382 | . 318 64 Guns 382 | . 318 64 Cannons . | . . . Explosions . | . . . Melee . | . . . Ramming . | . . . Kinetic . | . . . Thermal 275 | . 211 64 Explosive . | . . . Electromagnetic 107 | . 107 . Impact . | . . . Slashing . | . . . Piercing . | . . . Highest Corruption 1 | . 1 1 Average Corruption 1 | . 1 1 Corruption Purged . | . . . Corruption Blocked . | . . . Effects 2 | . 1 1 Matter Fused 1 | . 1 . Parts Fused 1 | . . 1 Overload Shots . | . . . Overflow Damage . | . . . Projectiles . | . . . Explosions . | . . . Melee . | . . . Knockbacks . | . . . Impact . | . . . Kinetic . | . . . Secondary . | . . . Self-Inflicted Damage . | . . . Shots . | . . . Rammed . | . . . Targets Rammed . | . . . Kicked . | . . . Crushed . | . . . Highest Temperature 291 | . 291 42 Average Temperature 90 | . 96 24 Received Heat Transfer 342 | . 270 72 Siege Activations . | . . . Robots Corrupted . | . . . Combat Hostiles . | . . . Parts Fried . | . . . Impact Corruptions . | . . . Robots Melted . | . . . Combat Hostiles . | . . . Parts Melted . | . . . Heat Transferred 891 | . 741 150 Parts Sabotaged . | . . . Parts Stolen . | . . . Parts Stripped . | . . . Power Chain Reactions . | . . . Alert | -11 -10 -10 ------- Run | Yrd Mat Min Peak Influence 196 | . 196 104 Initial 64 | . . 64 Average 66 | . 80 78 Maximum Alert Level . | . . . Low Security (%) 100 | 100 100 100 Level 1 . | . . . Level 2 . | . . . Level 3 . | . . . Level 4 . | . . . Level 5 . | . . . High Security . | . . . Max Security . | . . . Squads Dispatched . | . . . Investigation . | . . . Extermination . | . . . Reinforcement . | . . . Assault . | . . . Garrison . | . . . Intercept . | . . . Searches Triggered . | . . . Construction Impeded . | . . . Haulers Reinforced . | . . . Active Scanning Responses . | . . . Cargo Convoy Interrupts . | . . . Stealth | -11 -10 -10 --------- Run | Yrd Mat Min Distress Signals . | . . . Communications Jammed . | . . . Distress Signals . | . . . Times Spotted 16 | . 12 4 Peak Tracking Total 4 | . 4 2 Tactical Retreats 1 | . 1 . Traps | -11 -10 -10 ------- Run | Yrd Mat Min Traps Triggered 1 | . 1 . Indirectly . | . . . Trap Hack Attempts . | . . . Triggered . | . . . Disarmed . | . . . Reprogrammed . | . . . Reused . | . . . Traps Extracted . | . . . Installed . | . . . Triggered . | . . . Machines | -11 -10 -10 ---------- Run | Yrd Mat Min Machines Disabled . | . . . Max in Single Turn . | . . . Machines Repaired . | . . . Machines Dismantled . | . . . Machines Sabotaged . | . . . Overloaded Fab Kills . | . . . Hacking | -11 -10 -10 --------- Run | Yrd Mat Min Machines Accessed 2 | . 2 . Terminals 2 | . 2 . Fabricators . | . . . Repair Stations . | . . . Recycling Units . | . . . Scanalyzers . | . . . Garrison Access . | . . . Total Hacks 6 | . 6 . Successful 4 | . 4 . Failed 2 | . 2 . Catastrophic . | . . . Database Lockouts . | . . . Manual 1 | . 1 . Terminals 6 | . 6 . Fabricators . | . . . Repair Stations . | . . . Recycling Units . | . . . Scanalyzers . | . . . Garrison Access . | . . . Terminal Hacks 3 | . 3 . Robot Analysis 1 | . 1 . Locate Traps 1 | . 1 . Zone Layout 1 | . 1 . Fabricator Hacks . | . . . Repair Station Hacks . | . . . Recycling Unit Hacks . | . . . Scanalyzer . | . . . Garrison Access Hacks . | . . . Unauthorized Hacks 1 | . 1 . Terminals 1 | . 1 . Botnet 1 | . 1 . Fabricators . | . . . Repair Stations . | . . . Recycling Units . | . . . Scanalyzers . | . . . Garrison Access . | . . . Data Cores Recovered . | . . . Used . | . . . Hacking Detections 2 | . 2 . Full Trace Events 1 | . 1 . Feedback Events . | . . . Feedback Blocked . | . . . Robot Schematics Acquired . | . . . Robots Built . | . . . Authchips . | . . . Time . | . . . Total Robot Build Rating . | . . . Part Schematics Acquired . | . . . Parts Built . | . . . Authchips . | . . . Time . | . . . Total Part Build Rating . | . . . Parts Repaired . | . . . Time . | . . . Parts Recycled . | . . . Recycled Matter . | . . . Retrieved Matter . | . . . Retrieved Components . | . . . Parts Scanalyzed . | . . . Part Schematics Acquired . | . . . Parts Damaged . | . . . Bothacking | -11 -10 -10 ------------ Run | Yrd Mat Min Used RIF Installer . | . . . Robots Hacked . | . . . Non-combat . | . . . Combat . | . . . Robot Hacks Applied . | . . . Relay Couplers Released . | . . . Fabnet Peak Effective % . | . . . Robots Rewired . | . . . Allies Hacked . | . . . Hacks Repelled . | . . . Allies | -11 -10 -10 -------- Run | Yrd Mat Min Total Allies . | . . . Largest Group . | . . . Highest-Rated Group . | . . . Highest-Rated Ally . | . . . Total Orders . | . . . Ally Attacks . | . . . Total Damage . | . . . Kills . | . . . Allies Corrupted . | . . . Allies Melted . | . . . Intel | -11 -10 -10 ------- Run | Yrd Mat Min Robot Analysis Total 1 | . 1 . Derelict Logs Recovered . | . . . Drone Launches . | . . . Drone Recoveries . | . . . Exploration | -11 -10 -10 ------------- Run | Yrd Mat Min Turns Passed 434 | 74 306 54 Spaces Moved 203 | 39 139 25 Core 3 | 2 . 1 Treads 191 | 37 139 15 Legs 9 | . . 9 Wheels . | . . . Hover . | . . . Flight . | . . . Fastest Speed 50 | 50 160 120 Average Speed 157 | 154 160 149 Slowest Speed 250 | 160 160 250 Overloaded Moves . | . . . Propulsion Burnouts . | . . . Robots Hopped . | . . . Cave-ins Triggered . | . . . Exploration Rate (%) 15 | 4 30 11 Regions Visited 2 Branch Regions 1 Pre-discovered Areas . | . . . Known Exits Taken . | . . . Unknown Exits Taken 2 | 1 1 . Scrap Searched . | . . . Spaces Dug . | . . . Terrain Destroyed . | . . . Melee . | . . . Projectile . | . . . AOE . | . . . Terrain Rammed . | . . . Walls Destroyed . | . . . Machines Disabled . | . . . Actions | -11 -10 -10 --------- Run | Yrd Mat Min Total 266 | 50 182 34 Wait 19 | . 17 2 Move 201 | 38 138 25 Hop . | . . . Pick Up 9 | 6 3 . Fast Attach 9 | 6 1 2 Attach 1 | . 1 . Detach . | . . . Swap 1 | . 1 . Drop 1 | . 1 . Fire 25 | . 20 5 Melee . | . . . Ram . | . . . Kick . | . . . Crush . | . . . Escape Stasis . | . . . Rewire . | . . . Trap . | . . . Miscellaneous . | . . . Route ------- -11/Scrapyard -10/Materials -10/Mines History --------- Turn | Location | Event 40 | -11/Scrapyard | Discovered new exit (range 16) 75 | -11/Scrapyard | Entered Materials 237 | -10/Materials | Discovered new exit (range 17) 310 | -10/Materials | Build established: Mutant 381 | -10/Materials | Entered Mines 382 | -10/Mines | Assembled infested the area 387 | -10/Mines | Assisted by a Guerilla fighting off Assembled 394 | -10/Mines | Lost 3 parts (1p1n1w) 427 | -10/Mines | Core integrity fell below 50% 433 | -10/Mines | Core integrity fell below 20% 435 | -10/Mines | Destroyed by D-53 Grenadier with Mini Grenade Launcher Last Messages --------------- Something is scanning the area. 00382_ ALERT: Infestation in the mines, dispatching Demolisher response squad. 00387_ A derelict emerges from the shadows: "You need to get out of here! I've been tracking a group of Assembled to figure out where they're coming from, and they're closing on this area, come on!" 00395_ 74-DK9(h): "I'll hold them off! Go on ahead or try to find another way!" 00402_ HV Slug penetrates G-34 Mercenary. 00404_ G-34 Mercenary knocked back. 00404_ 74-DK9(h) destroyed. 00407_ G-34 Mercenary destroyed. 00412_ Acquired Sml. Laser. 00413_ System corrupted: Sml. Laser fused. 00414_ Critical hit (Burn: +37). 00416_ Lgt. Treads destroyed. 00417_ G-47 Trooper destroyed. 00422_ Acquired Flexi-carbon Leg. 00424_ Acquired 25 matter. 00426_ C-30 ARC bursts open, deploying its payload. 00426_ D-53 Grenadier unfolds itself. 00428_ Sml. Laser destroyed. Map ----- +----------------------------------------------------+ | | | | | | | | | | | | | ?????????????????????????????????????????????????? | | ?????????????????????????????????????????????????? | | ?????????????????????????????????????????????????? | | ?????????????????????????????????????????????????? | | ?????????????????????????????????????????????????? | | ????????????????##???????????????????????????????? | | ???????????????## #??????????????????????????????? | | ???????????????# ###???????????????????????????? | | ???????????????# ##??????????????????????????? | | ???????????????# ] ##?????##??????????????????? | | ??????????????## #????? ##?????????????????? | | ?????????????## ##??? ??????????????????? | | ?????????????# ###? ???????????????????? | | ?????????????# ## ????????????????????? | | ?????????????# #????????????????????? | | ?????????????### ## #????????????????????? | | ??????????????#; ## #????????????????????? | | ????????????#?## #????????????????????? | | ????????????# # #????????????????????? | | ????????????## % @ #????????????????????? | | ????????????# *] ?????????????????????? | | ????????????# * #?????????????????????? | | ????????????## d ##?????????????????????? | | ?????????????## d #??????????????????????? | | ??????????????# % ## # ?????????????????????? | | ??????????????## #### ????????????????????? | | ???????????????##r #??######???????????????????? | | ???????????????# #???????????????????????????? | | ??????????????# #???????????????????????????? | | ?????????????? #???????????????????????????? | | ?????????????? #???????????????????????????? | | ????????????? #???????????????????????????? | | ???????????? ## #???????????????????????????? | | ??????????????## ## #???????????????????????????? | | ???????????????###?? ???????????????????????????? | | ????????????????????##???????????????????????????? | | ?????????????????????????????????????????????????? | | ?????????????????????????????????????????????????? | | ?????????????????????????????????????????????????? | | ?????????????????????????????????????????????????? | | ?????????????????????????????????????????????????? | | ?????????????????????????????????????????????????? | | ?????????????????????????????????????????????????? | | ?????????????????????????????????????????????????? | +----------------------------------------------------+ Best States ------------- Heat Dissipation 25 Energy Generation 10 Energy Capacity 125 Matter Stores 300 Matter Capacity 300 Sight Range 16 Robot Scan Range 14 Terrain Scan Density 10 Evasion (%) 45 Recoil Reduction 2 Item Schematics ----------------- None Robot Schematics ------------------ None Fabricated ------------ Nothing Alien Tech Used ----------------- None Achievements -------------- None Challenges ------------ None Game ------ Seed DirtyUltimateArticulator Manual? 0 Play Time 00:05:29 Cumulative 46.5 hours Start 2025.03.22 @ 17:06:15 End 2025.03.22 @ 17:11:40 Sessions 1 Manual Loads 0 Difficulty Rogue Special Mode None Game No. 39 Rogue 39 Adventurer 0 Explorer 0 Win Type - Total 1 Types 1/0/0/0/0/0/0/0/0 Lore% 16 Gallery% 41 Achievement% 29 Wizard Run 0 Options --------- Layout 0 ASCII 0 Keyboard 1 Movement Numpad Keybinds 0 Fullscreen 0 Font 16/SmallcapsGlow Map View 88x55 Zoom Use 0% Tactical HUD 1 Map Filters NONE Filters NONE Steam 1 RUN: 6996cb2b-3f19-4070-b1ef-cdb760a3cb44